fUST/lending_fUST_20260702
["ID","MTS","AMOUNT","RATE_DAILY","PERIOD"]
[426855128,1782958241000,-1200.0,0.00029041,2]
[426855114,1782958241000,-500.0,0.00029041,6]
[426855126,1782958241000,-438.95667563,0.00029041,7]
[426855145,1782958241000,-500.0,0.00029041,7]
[426855131,1782958241000,-155.55774954,0.00029041,2]
[426855149,1782958241000,-1000.0,0.00029041,2]
[426855166,1782958241000,-519.3439186,0.00029041,7]
[426855153,1782958241000,-1000.0,0.00029041,2]
[426855151,1782958241000,-1000.0,0.00029041,2]
[426855156,1782958241000,-1000.0,0.00029041,2]
[426855160,1782958241000,-1000.0,0.00029041,2]
[426855162,1782958241000,-962.83778908,0.00029041,2]
[426855169,1782958241000,-530.68103722,0.00029041,7]
[426855171,1782958241000,-500.0,0.00029041,7]
[426855164,1782958241000,-531.54614793,0.00029041,7]
[426855182,1782958241000,-413.25573353,0.00029041,7]
[426855168,1782958241000,-522.90894807,0.00029041,7]
[426855173,1782958241000,-500.0,0.00029041,7]
[426855184,1782958241000,-500.0,0.00029041,7]
[426855135,1782958241000,-500.0,0.00029041,7]
[426855158,1782958241000,-1000.0,0.00029041,2]
[426855122,1782958241000,-500.0,0.00029041,6]
[426855099,1782958241000,-533.8490076,0.00029041,7]
[426855120,1782958241000,-500.0,0.00029041,6]
[426855065,1782958241000,-500.0,0.00029041,7]
[426855068,1782958241000,-500.0,0.00029041,7]
[426855072,1782958241000,-500.0,0.00029041,7]
[426855067,1782958241000,-500.0,0.00029041,7]
[426855076,1782958241000,-500.0,0.00029041,7]
[426855070,1782958241000,-500.0,0.00029041,7]
[426855074,1782958241000,-500.0,0.00029041,6]
[426855078,1782958241000,-256.90498634,0.00029041,7]
[426855080,1782958241000,-500.0,0.00029041,6]
[426855085,1782958241000,-500.0,0.00029041,6]
[426855083,1782958241000,-500.0,0.00029041,6]
[426855082,1782958241000,-500.0,0.00029041,6]
[426855087,1782958241000,-500.0,0.00029041,6]
[426855133,1782958241000,-564.92450677,0.00029041,7]
[426855089,1782958241000,-500.0,0.00029041,6]
[426855177,1782958241000,-500.0,0.00029041,7]
[426855095,1782958241000,-500.0,0.00029041,6]
[426855097,1782958241000,-500.0,0.00029041,6]
[426855093,1782958241000,-500.0,0.00029041,6]
[426855107,1782958241000,-500.0,0.00029041,6]
[426855110,1782958241000,-500.0,0.00029041,6]
[426855109,1782958241000,-500.0,0.00029041,6]
[426855112,1782958241000,-500.0,0.00029041,6]
[426855101,1782958241000,-500.0,0.00029041,6]
[426855103,1782958241000,-500.0,0.00029041,6]
[426855105,1782958241000,-500.0,0.00029041,6]
[426855116,1782958241000,-500.0,0.00029041,6]
[426855118,1782958241000,-500.0,0.00029041,6]
[426855091,1782958241000,-500.0,0.00029041,6]
[426855175,1782958241000,-500.0,0.00029041,7]
[426855154,1782958241000,-1000.0,0.00029041,2]
[426855181,1782958241000,-500.0,0.00029041,7]
[426855244,1782958241000,-500.0,0.00029041,7]
[426855256,1782958241000,-500.0,0.00029041,7]
[426855250,1782958241000,-500.0,0.00029041,7]
[426855258,1782958241000,-500.0,0.00029041,7]
[426855248,1782958241000,-500.0,0.00029041,7]
[426855259,1782958241000,-500.0,0.00029041,7]
[426855252,1782958241000,-500.0,0.00029041,7]
[426855284,1782958241000,-549.6675221,0.00029041,7]
[426855286,1782958241000,-1000.0,0.00029041,2]
[426855264,1782958241000,-502.62477628,0.00029041,7]
[426855282,1782958241000,-500.0,0.00029041,7]
[426855261,1782958241000,-500.0,0.00029041,7]
[426855270,1782958241000,-627.25354199,0.00029041,7]
[426855236,1782958241000,-500.0,0.00029041,7]
[426855266,1782958241000,-500.0,0.00029041,7]
[426855274,1782958241000,-500.0,0.00029041,7]
[426855280,1782958241000,-500.0,0.00029041,7]
[426855268,1782958241000,-269.03513285,0.00029041,7]
[426855272,1782958241000,-500.0,0.00029041,7]
[426855276,1782958241000,-500.0,0.00029041,7]
[426855294,1782958241000,-1000.0,0.00029041,2]
[426855292,1782958241000,-1000.0,0.00029041,2]
[426855290,1782958241000,-1000.0,0.00029041,2]
[426855296,1782958241000,-1000.0,0.00029041,2]
[426855179,1782958241000,-500.0,0.00029041,7]
[426855299,1782958241000,-1000.0,0.00029041,2]
[426855300,1782958241000,-1000.0,0.00029041,2]
[426855302,1782958241000,-1084.4298063,0.00029041,2]
[426855278,1782958241000,-500.0,0.00029041,7]
[426855254,1782958241000,-500.0,0.00029041,7]
[426855288,1782958241000,-1000.0,0.00029041,2]
[426855246,1782958241000,-500.0,0.00029041,7]
[426855242,1782958241000,-500.0,0.00029041,7]
[426855186,1782958241000,-500.0,0.00029041,7]
[426855188,1782958241000,-500.0,0.00029041,7]
[426855190,1782958241000,-500.0,0.00029041,7]
[426855192,1782958241000,-500.0,0.00029041,7]
[426855205,1782958241000,-536.74314265,0.00029041,7]
[426855196,1782958241000,-500.0,0.00029041,7]
[426855199,1782958241000,-500.0,0.00029041,7]
[426855209,1782958241000,-500.0,0.00029041,7]
[426855207,1782958241000,-500.0,0.00029041,7]
[426855203,1782958241000,-500.0,0.00029041,7]
[426855197,1782958241000,-500.0,0.00029041,7]
[426855201,1782958241000,-500.0,0.00029041,7]
[426855213,1782958241000,-442.12505467,0.00029041,7]
[426855194,1782958241000,-500.0,0.00029041,7]
[426855215,1782958241000,-500.0,0.00029041,7]
[426855219,1782958241000,-500.0,0.00029041,7]
[426855238,1782958241000,-500.0,0.00029041,7]
[426855226,1782958241000,-511.54939407,0.00029041,7]
[426855234,1782958241000,-500.0,0.00029041,7]
[426855221,1782958241000,-519.23795599,0.00029041,7]
[426855211,1782958241000,-219.23263651,0.00029041,7]
[426855228,1782958241000,-506.64134935,0.00029041,7]
[426855224,1782958241000,-506.2299976,0.00029041,7]
[426855230,1782958241000,-500.0,0.00029041,7]
[426855222,1782958241000,-467.32821884,0.00029041,7]
[426855240,1782958241000,-500.0,0.00029041,7]
[426855217,1782958241000,-500.0,0.00029041,7]
[426855232,1782958241000,-500.0,0.00029041,7]
[426855384,1782958242000,-500.0,0.00029041,7]
[426855364,1782958242000,-500.0,0.00029041,7]
[426855366,1782958242000,-500.0,0.00029041,7]
[426855368,1782958242000,-500.0,0.00029041,7]
[426855370,1782958242000,-500.0,0.00029041,7]
[426855376,1782958242000,-500.0,0.00029041,7]
[426855374,1782958242000,-500.0,0.00029041,7]
[426855378,1782958242000,-508.84947124,0.00029041,7]
[426855380,1782958242000,-579.13622455,0.00029041,7]
[426855360,1782958242000,-169.20636266,0.00029041,7]
[426855372,1782958242000,-561.17197336,0.00029041,7]
[426855406,1782958242000,-523.4,0.00029041,7]
[426855388,1782958242000,-512.44258046,0.00029041,7]
[426855389,1782958242000,-523.4,0.00029041,7]
[426855391,1782958242000,-523.4,0.00029041,7]
[426855393,1782958242000,-523.4,0.00029041,7]
[426855395,1782958242000,-523.4,0.00029041,7]
[426855408,1782958242000,-523.4,0.00029041,7]
[426855386,1782958242000,-500.0,0.00029041,7]
[426855399,1782958242000,-523.4,0.00029041,7]
[426855397,1782958242000,-523.4,0.00029041,7]
[426855401,1782958242000,-523.4,0.00029041,7]
[426855362,1782958242000,-500.0,0.00029041,7]
[426855403,1782958242000,-523.4,0.00029041,7]
[426855382,1782958242000,-491.19250599,0.00029041,7]
[426855358,1782958242000,-500.0,0.00029041,7]
[426855330,1782958242000,-3000.0,0.00029041,2]
[426855349,1782958242000,-500.0,0.00029041,7]
[426855405,1782958242000,-523.4,0.00029041,7]
[426855304,1782958242000,-523.09297226,0.00029041,7]
[426855306,1782958242000,-508.83896747,0.00029041,7]
[426855310,1782958242000,-500.0,0.00029041,7]
[426855308,1782958242000,-500.0,0.00029041,7]
[426855314,1782958242000,-500.0,0.00029041,7]
[426855316,1782958242000,-500.0,0.00029041,7]
[426855318,1782958242000,-500.0,0.00029041,7]
[426855324,1782958242000,-3000.0,0.00029041,2]
[426855322,1782958242000,-302.06470277,0.00029041,7]
[426855320,1782958242000,-500.0,0.00029041,7]
[426855328,1782958242000,-3000.0,0.00029041,2]
[426855312,1782958242000,-500.0,0.00029041,7]
[426855331,1782958242000,-3000.0,0.00029041,2]
[426855326,1782958242000,-3000.0,0.00029041,2]
[426855333,1782958242000,-3000.0,0.00029041,2]
[426855337,1782958242000,-3000.0,0.00029041,2]
[426855335,1782958242000,-3000.0,0.00029041,2]
[426855339,1782958242000,-3000.0,0.00029041,2]
[426855343,1782958242000,-3000.0,0.00029041,2]
[426855345,1782958242000,-1559.19993062,0.00029041,2]
[426855355,1782958242000,-500.0,0.00029041,7]
[426855347,1782958242000,-249.45126418,0.00029041,7]
[426855357,1782958242000,-500.0,0.00029041,7]
[426855353,1782958242000,-500.0,0.00029041,7]
[426855351,1782958242000,-500.0,0.00029041,7]
[426855410,1782958242000,-523.4,0.00029041,7]
[426855341,1782958242000,-3000.0,0.00029041,2]
[426855416,1782958242000,-500.0,0.00029041,7]
[426855496,1782958242000,-500.0,0.00029041,7]
[426855499,1782958242000,-500.0,0.00029041,2]
[426855501,1782958242000,-500.0,0.00029041,7]
[426855505,1782958242000,-500.0,0.00029041,2]
[426855510,1782958242000,-500.0,0.00029041,2]
[426855534,1782958242000,-500.0,0.00029041,2]
[426855515,1782958242000,-500.0,0.00029041,2]
[426855517,1782958242000,-482.85181767,0.00029041,7]
[426855521,1782958242000,-500.0,0.00029041,2]
[426855519,1782958242000,-500.0,0.00029041,2]
[426855513,1782958242000,-500.0,0.00029041,7]
[426855523,1782958242000,-500.0,0.00029041,2]
[426855524,1782958242000,-455.9595478,0.00029041,2]
[426855525,1782958242000,-500.0,0.00029041,7]
[426855526,1782958242000,-500.0,0.00029041,7]
[426855529,1782958242000,-500.0,0.00029041,7]
[426855528,1782958242000,-524.35143196,0.00029041,7]
[426855527,1782958242000,-508.98146904,0.00029041,7]
[426855532,1782958242000,-516.85613577,0.00029041,7]
[426855531,1782958242000,-500.0,0.00029041,7]
[426855536,1782958242000,-500.0,0.00029041,2]
[426855541,1782958242000,-500.0,0.00029041,2]
[426855538,1782958242000,-500.0,0.00029041,2]
[426855543,1782958242000,-500.0,0.00029041,2]
[426855414,1782958242000,-523.4,0.00029041,7]
[426855490,1782958242000,-500.0,0.00029041,2]
[426855488,1782958242000,-500.0,0.00029041,7]
[426855522,1782958242000,-500.0,0.00029041,2]
[426855494,1782958242000,-500.0,0.00029041,2]
[426855412,1782958242000,-523.4,0.00029041,7]
[426855492,1782958242000,-500.0,0.00029041,7]
[426855422,1782958242000,-523.4,0.00029041,7]
[426855420,1782958242000,-270.71190061,0.00029041,7]
[426855418,1782958242000,-523.4,0.00029041,7]
[426855424,1782958242000,-523.4,0.00029041,7]
[426855426,1782958242000,-523.4,0.00029041,7]
[426855428,1782958242000,-523.4,0.00029041,7]
[426855430,1782958242000,-523.4,0.00029041,7]
[426855436,1782958242000,-523.4,0.00029041,7]
[426855434,1782958242000,-523.4,0.00029041,7]
[426855444,1782958242000,-500.0,0.00029041,7]
[426855438,1782958242000,-523.45059776,0.00029041,7]
[426855432,1782958242000,-523.4,0.00029041,7]
[426855483,1782958242000,-500.0,0.00029041,7]
[426855440,1782958242000,-500.0,0.00029041,7]
[426855481,1782958242000,-500.0,0.00029041,2]
[426855479,1782958242000,-500.0,0.00029041,7]
[426855475,1782958242000,-500.0,0.00029041,2]
[426855452,1782958242000,-500.0,0.00029041,2]
[426855450,1782958242000,-506.73639952,0.00029041,7]
[426855446,1782958242000,-504.32885385,0.00029041,7]
[426855454,1782958242000,-500.0,0.00029041,2]
[426855456,1782958242000,-500.0,0.00029041,7]
[426855442,1782958242000,-500.0,0.00029041,7]
[426855448,1782958242000,-500.0,0.00029041,7]
[426855486,1782958242000,-500.0,0.00029041,2]
[426855621,1782958243000,-644.4,0.00029041,7]
[426855628,1782958243000,-644.4,0.00029041,7]
[426855627,1782958243000,-500.0,0.00029041,7]
[426855624,1782958243000,-644.4,0.00029041,7]
[426855612,1782958243000,-644.4,0.00029041,7]
[426855608,1782958243000,-644.4,0.00029041,7]
[426855619,1782958243000,-500.0,0.00029041,7]
[426855610,1782958243000,-644.4,0.00029041,7]
[426855606,1782958243000,-644.4,0.00029041,7]
[426855632,1782958243000,-644.4,0.00029041,7]
[426855614,1782958243000,-644.4,0.00029041,7]
[426855634,1782958243000,-644.4,0.00029041,7]
[426855660,1782958243000,-500.0,0.00029041,2]
[426855636,1782958243000,-644.4,0.00029041,7]
[426855640,1782958243000,-644.4,0.00029041,7]
[426855650,1782958243000,-644.4,0.00029041,7]
[426855631,1782958243000,-222.76431514,0.00029041,7]
[426855644,1782958243000,-644.4,0.00029041,7]
[426855652,1782958243000,-644.4,0.00029041,7]
[426855646,1782958243000,-644.4,0.00029041,7]
[426855642,1782958243000,-644.4,0.00029041,7]
[426855648,1782958243000,-644.4,0.00029041,7]
[426855654,1782958243000,-644.50013938,0.00029041,7]
[426855658,1782958243000,-500.0,0.00029041,2]
[426855663,1782958243000,-500.0,0.00029041,2]
[426855617,1782958243000,-644.4,0.00029041,7]
[426855638,1782958243000,-644.4,0.00029041,7]
[426855600,1782958243000,-644.4,0.00029041,7]
[426855545,1782958243000,-500.0,0.00029041,2]
[426855602,1782958243000,-644.4,0.00029041,7]
[426855547,1782958243000,-500.0,0.00029041,2]
[426855548,1782958243000,-500.0,0.00029041,2]
[426855661,1782958243000,-500.0,0.00029041,2]
[426855550,1782958243000,-500.0,0.00029041,2]
[426855552,1782958243000,-500.0,0.00029041,2]
[426855556,1782958243000,-500.0,0.00029041,2]
[426855554,1782958243000,-500.0,0.00029041,2]
[426855558,1782958243000,-500.0,0.00029041,2]
[426855562,1782958243000,-500.0,0.00029041,2]
[426855560,1782958243000,-500.0,0.00029041,2]
[426855564,1782958243000,-500.0,0.00029041,2]
[426855566,1782958243000,-500.0,0.00029041,2]
[426855568,1782958243000,-500.0,0.00029041,2]
[426855604,1782958243000,-644.4,0.00029041,7]
[426855574,1782958243000,-500.0,0.00029041,2]
[426855570,1782958243000,-500.0,0.00029041,2]
[426855572,1782958243000,-500.0,0.00029041,2]
[426855579,1782958243000,-500.0,0.00029041,7]
[426855583,1782958243000,-500.0,0.00029041,7]
[426855581,1782958243000,-500.0,0.00029041,7]
[426855588,1782958243000,-500.0,0.00029041,7]
[426855585,1782958243000,-500.0,0.00029041,7]
[426855587,1782958243000,-500.0,0.00029041,7]
[426855592,1782958243000,-500.0,0.00029041,7]
[426855594,1782958243000,-500.0,0.00029041,7]
[426855598,1782958243000,-509.13477127,0.00029041,7]
[426855596,1782958243000,-404.25147314,0.00029041,7]
[426855590,1782958243000,-500.0,0.00029041,7]
[426855577,1782958243000,-156.11057445,0.00029041,2]
[426855656,1782958243000,-573.4075128,0.00029041,7]
[426855622,1782958243000,-500.0,0.00029041,7]
[426855665,1782958243000,-500.0,0.00029041,2]
[426855739,1782958243000,-500.0,0.00029041,7]
[426855742,1782958243000,-602.75196251,0.00029041,7]
[426855741,1782958243000,-500.0,0.00029041,7]
[426855737,1782958243000,-504.32714966,0.00029041,7]
[426855735,1782958243000,-500.0,0.00029041,7]
[426855733,1782958243000,-500.0,0.00029041,7]
[426855751,1782958243000,-500.0,0.00029041,7]
[426855744,1782958243000,-500.0,0.00029041,7]
[426855675,1782958243000,-500.0,0.00029041,2]
[426855749,1782958243000,-500.0,0.00029041,7]
[426855753,1782958243000,-500.0,0.00029041,7]
[426855755,1782958243000,-500.0,0.00029041,7]
[426855757,1782958243000,-169.93312705,0.00029041,7]
[426855731,1782958243000,-504.02273626,0.00029041,7]
[426855763,1782958243000,-303.94221095,0.00029041,7]
[426855761,1782958243000,-2208.15,0.00029041,7]
[426855772,1782958243000,-2208.15,0.00029041,7]
[426855774,1782958243000,-2208.15,0.00029041,7]
[426855776,1782958243000,-2208.15,0.00029041,7]
[426855765,1782958243000,-2208.15,0.00029041,7]
[426855767,1782958243000,-2208.15,0.00029041,7]
[426855769,1782958243000,-2208.15,0.00029041,7]
[426855771,1782958243000,-2208.15,0.00029041,7]
[426855778,1782958243000,-2208.15,0.00029041,7]
[426855780,1782958243000,-2208.15,0.00029041,7]
[426855784,1782958243000,-2208.15,0.00029041,7]
[426855782,1782958243000,-2208.15,0.00029041,7]
[426855786,1782958243000,-2208.15,0.00029041,7]
[426855759,1782958243000,-176.07020827,0.00029041,7]
[426855729,1782958243000,-500.0,0.00029041,7]
[426855746,1782958243000,-500.0,0.00029041,7]
[426855725,1782958243000,-500.0,0.00029041,7]
[426855667,1782958243000,-500.0,0.00029041,2]
[426855674,1782958243000,-500.0,0.00029041,2]
[426855672,1782958243000,-500.0,0.00029041,2]
[426855727,1782958243000,-500.0,0.00029041,7]
[426855677,1782958243000,-500.0,0.00029041,2]
[426855680,1782958243000,-500.0,0.00029041,2]
[426855684,1782958243000,-362.98370055,0.00029041,2]
[426855686,1782958243000,-500.0,0.00029041,7]
[426855690,1782958243000,-500.0,0.00029041,7]
[426855688,1782958243000,-500.0,0.00029041,7]
[426855692,1782958243000,-500.0,0.00029041,7]
[426855682,1782958243000,-500.0,0.00029041,2]
[426855702,1782958243000,-500.0,0.00029041,7]
[426855696,1782958243000,-500.0,0.00029041,7]
[426855669,1782958243000,-500.0,0.00029041,2]
[426855700,1782958243000,-500.0,0.00029041,7]
[426855694,1782958243000,-500.0,0.00029041,7]
[426855713,1782958243000,-500.0,0.00029041,7]
[426855711,1782958243000,-500.0,0.00029041,7]
[426855721,1782958243000,-500.0,0.00029041,7]
[426855710,1782958243000,-500.0,0.00029041,7]
[426855708,1782958243000,-500.0,0.00029041,7]
[426855723,1782958243000,-500.0,0.00029041,7]
[426855719,1782958243000,-500.0,0.00029041,7]
[426855715,1782958243000,-500.0,0.00029041,7]
[426855704,1782958243000,-500.0,0.00029041,7]
[426855706,1782958243000,-500.0,0.00029041,7]
[426855697,1782958243000,-521.03373377,0.00029041,7]
[426855717,1782958243000,-500.0,0.00029041,7]
[426855820,1782958244000,-167.99,0.00029041,15]
[426855834,1782958244000,-281.04573945,0.00029247,7]
[426855826,1782958244000,-161.18,0.00029155,2]
[426855828,1782958244000,-653.59,0.00029177,7]
[426855823,1782958244000,-342.05452134,0.00029137,60]
[426855822,1782958244000,-167.99,0.00029091,15]
[426855825,1782958244000,-161.19,0.00029153,2]
[426855824,1782958244000,-167.99,0.00029141,15]
[426855821,1782958244000,-1589.0,0.00029078,30]
[426855819,1782958244000,-2208.15260071,0.00029041,7]
[426855796,1782958244000,-2208.15,0.00029041,7]
[426855806,1782958244000,-1442.46663468,0.00029041,7]
[426855804,1782958244000,-2208.15,0.00029041,7]
[426855802,1782958244000,-2208.15,0.00029041,7]
[426855800,1782958244000,-2208.15,0.00029041,7]
[426855798,1782958244000,-2208.15,0.00029041,7]
[426855794,1782958244000,-2208.15,0.00029041,7]
[426855792,1782958244000,-2208.15,0.00029041,7]
[426855790,1782958244000,-2208.15,0.00029041,7]
[426855788,1782958244000,-2208.15,0.00029041,7]
[426855817,1782958244000,-765.68336532,0.00029041,7]
[426855832,1782958244000,-167.99,0.00029241,15]
[426855854,1782958244000,-497.92914224,0.00029251,2]
[426855846,1782958244000,-855.16227909,0.00029251,2]
[426855892,1782958244000,-78.60824008,0.0002465,2]
[426855888,1782958244000,-151.0,0.0002465,2]
[426855890,1782958244000,-72.39175992,0.0002465,2]
[426855830,1782958244000,-167.99,0.00029191,15]
[426855886,1782958244000,-125.16947584,0.00023452,2]
[426855899,1782958244000,-151.0,0.00027862,7]
[426855901,1782958244000,-110.35196663,0.00028522,7]
[426855897,1782958244000,-151.0,0.00027381,2]
[426855895,1782958244000,-151.0,0.00026484,2]
[426855883,1782958244000,-25.81996338,0.00023452,2]
[426855894,1782958244000,-151.0,0.00026484,2]
[426855860,1782958244000,-2433.1418704,0.00029251,2]
[426855857,1782958244000,-2372.56105648,0.00029251,2]
[426855840,1782958244000,-8612.881765,0.00029251,2]
[426855844,1782958244000,-16269.72023898,0.00029251,2]
[426855842,1782958244000,-23396.97315532,0.00029251,2]
[426855838,1782958244000,-40518.54141501,0.00029251,2]
[426855852,1782958244000,-37544.7438915,0.00029251,2]
[426855836,1782958244000,-1483.17590627,0.00029249,120]
[426855850,1782958244000,-6409.95775484,0.00029251,2]
[426855848,1782958244000,-52644.75695881,0.00029251,2]
[426855862,1782958244000,-6372.00409595,0.00029251,2]
[426855963,1782958246000,-159.51325022,0.00023127,14]
[426855965,1782958246000,-151.0,0.00027381,2]
[426855964,1782958246000,-239.001962,0.0002465,2]
[426855966,1782958246000,-151.0,0.00027862,7]
[426855971,1782958246000,-5688.86051381,0.00029251,2]
[426855969,1782958246000,-1107.7744,0.000286,2]
[426855968,1782958246000,-151.0,0.00028522,7]
[426855970,1782958246000,-1848.47379008,0.00029251,2]
[426855967,1782958246000,-40.64803337,0.00028522,7]
[426855974,1782958747000,762.91,0.00028767,120]
[426855975,1782958752000,-151.0,0.00022,2]
[426855977,1782958959000,206.19724,0.00022,2]
[426855978,1782959215000,-293.80276,0.00022,2]
[426856031,1782959432000,-1064.33875545,0.00027025,2]
[426856029,1782959432000,-193.4823049,0.00026797,7]
[426856027,1782959432000,-269.396393,0.0002676,2]
[426856030,1782959432000,-380.0,0.00026977,2]
[426856025,1782959432000,-379.413335,0.00023288,2]
[426856235,1782959571000,-352.23,0.00023288,2]
[426856236,1782959884000,-136.9074332,0.00023288,2]
[426856237,1782959937000,-468.753779,0.00023288,2]
[426856238,1782959948000,-468.753779,0.00023288,2]
[426856239,1782959959000,-468.753779,0.00023288,2]
[426856240,1782959970000,-468.753779,0.00023288,2]
[426856241,1782959982000,-468.753779,0.00023288,2]
[426856242,1782959992000,-468.753779,0.00023288,2]
[426856243,1782960003000,-468.753779,0.00023288,2]
[426856244,1782960014000,-1332.45248916,0.00023288,2]
[426856245,1782960025000,-1332.45248916,0.00023288,2]
[426856247,1782960305000,302.13316654,0.0001,2]
[426856248,1782960346000,-151.0,0.00022585,2]
[426856251,1782960489000,4470.07979995,0.000125,2]
[426856253,1782960505000,16007.01322276,0.00013,2]
[426856256,1782960560000,-1063.46310152,0.00024,2]
[426856255,1782960560000,-160.0,0.00023277,2]
[426856294,1782960632000,-194.7401947,0.00024,2]
[426856296,1782960632000,-323.87578678,0.00024453,7]
[426856298,1782960632000,-51.98139589,0.00026,30]
[426856446,1782960639000,-43486.34610998,0.00026,30]
[426856667,1782960640000,-1825.08070627,0.00026,30]
[426856688,1782960641000,-3286.71001782,0.00026,30]
[426856876,1782960643000,-615.908,0.00026,30]
[426856877,1782960644000,-3844.21133179,0.00026,30]
[426856900,1782960650000,-6204.70113762,0.00026,30]
[426856903,1782961329000,-151.0,0.0002328,2]
[426856904,1782961434000,448.0,0.000195,30]
[426856905,1782961772000,-151.0,0.00022582,2]
[426856960,1782961832000,-188.110586,0.00026988,2]
[426856958,1782961832000,-401.7257128,0.0002676,2]
[426856954,1782961832000,-536.76130234,0.00026399,2]
[426856962,1782961832000,-1746.70127937,0.00026988,2]
[426856932,1782961832000,-500.0,0.00025999,2]
[426856952,1782961832000,-343.87110461,0.00026399,2]
[426856933,1782961832000,-500.0,0.00025999,2]
[426856929,1782961832000,-231.60297343,0.0002328,2]
[426856956,1782961832000,-416.62322009,0.00026399,2]
[426856946,1782961832000,-454.44747694,0.00025999,2]
[426856935,1782961832000,-45.55252306,0.00025999,2]
[426856948,1782961832000,-500.0,0.00025999,2]
[426856950,1782961832000,-300.88721653,0.00026399,2]
[426856977,1782961832000,-489.1374332,0.00026994,2]
[426856974,1782961832000,-500.0,0.00026993,2]
[426856975,1782961832000,-193.71994374,0.00026993,2]
[426856979,1782961832000,-406.36851651,0.00026994,2]
[426856972,1782961832000,-500.0,0.00026993,2]
[426856970,1782961832000,-359.29445924,0.00026993,2]
[426856963,1782961832000,-500.0,0.00026993,2]
[426856966,1782961832000,-500.0,0.00026993,2]
[426856968,1782961832000,-500.0,0.00026993,2]
[426857116,1782961839000,-275.211163,0.00027115,2]
[426857167,1782961839000,-3000.0,0.000286,2]
[426857171,1782961839000,-3000.0,0.0002862,2]
[426857165,1782961839000,-21485.7648737,0.000286,20]
[426857163,1782961839000,-500.0,0.00028599,7]
[426857148,1782961839000,-417.15472785,0.00028526,2]
[426857146,1782961839000,-6075.09024882,0.000285,2]
[426857161,1782961839000,-500.0,0.00028599,7]
[426857150,1782961839000,-300.0,0.00028564,11]
[426857144,1782961839000,-156.45869794,0.00028366,2]
[426857143,1782961839000,-160.0,0.00028123,2]
[426857157,1782961839000,-500.0,0.00028599,7]
[426857160,1782961839000,-289.4012654,0.00028599,7]
[426857152,1782961839000,-500.0,0.00028599,7]
[426857114,1782961839000,-160.0,0.00027,3]
[426857140,1782961839000,-160.0,0.00028123,2]
[426857154,1782961839000,-500.0,0.00028599,7]
[426857137,1782961839000,-218.85025621,0.000279,2]
[426857139,1782961839000,-224.71510845,0.00028011,2]
[426857135,1782961839000,-1422.0,0.0002778,2]
[426857131,1782961839000,-153.171,0.0002778,2]
[426857133,1782961839000,-150.549,0.0002778,2]
[426857129,1782961839000,-500.0,0.00027779,7]
[426857127,1782961839000,-298.94719353,0.00027779,2]
[426857119,1782961839000,-202.928,0.00027268,2]
[426857125,1782961839000,-262.79,0.00027446,3]
[426857123,1782961839000,-166.66666666,0.00027397,30]
[426857121,1782961839000,-456.397,0.00027268,2]
[426857118,1782961839000,-734.119,0.00027268,2]
[426857173,1782961839000,-500.0,0.00028629,7]
[426857155,1782961839000,-570.78331206,0.00028599,7]
[426857175,1782961839000,-500.0,0.00028629,7]